bitfinex-derivatives/quotes_BTCF0:USTF0_20220103
["timestamp","ask_amount","ask_price","bid_price","bid_amount"]
[1641213604677,1.35452816,47250.0,47249.0,0.21316402]
[1641213605872,1.35452816,47250.0,47249.0,0.02116402]
[1641213606475,1.70384954,47250.0,47249.0,0.21116402]
[1641213607875,1.70384954,47250.0,47249.0,0.02116402]
[1641213608476,1.70384954,47250.0,47249.0,0.21116402]
[1641213609579,0.53998751,47250.0,47249.0,0.21116402]
[1641213609978,0.53998751,47250.0,47249.0,0.02116402]
[1641213610577,0.53998751,47250.0,47249.0,0.21116402]
[1641213611381,1.70297618,47250.0,47249.0,0.21116402]
[1641213611981,1.70297618,47250.0,47249.0,0.02116402]
[1641213612582,1.70297618,47250.0,47249.0,0.21116402]
[1641213613983,1.70297618,47250.0,47249.0,0.02116402]
[1641213614583,1.70297618,47250.0,47249.0,0.21216402]
[1641213614784,1.56873758,47250.0,47249.0,0.21216402]
[1641213614991,0.75495869,47250.0,47249.0,0.21216402]
[1641213615993,0.75495869,47250.0,47249.0,0.02216402]
[1641213616392,0.40574891,47250.0,47249.0,0.02116402]
[1641213616593,0.40574891,47250.0,47249.0,0.21016402]
[1641213617293,0.40574891,47250.0,47249.0,0.21116402]
[1641213617294,0.755957,47250.0,47249.0,0.21116402]
[1641213617695,0.755957,47250.0,47249.0,0.21016402]
[1641213617894,0.755957,47250.0,47249.0,0.02116402]
[1641213618694,0.755957,47250.0,47249.0,0.21116402]
[1641213619895,0.755957,47250.0,47249.0,0.02116402]
[1641213620595,0.755957,47250.0,47249.0,0.21116402]
[1641213621807,0.755957,47250.0,47249.0,0.21216402]
[1641213622002,0.755957,47250.0,47249.0,0.02216402]
[1641213622603,0.755957,47250.0,47249.0,0.21116402]
[1641213622801,0.355957,47250.0,47249.0,0.21116402]
[1641213623003,0.755957,47250.0,47249.0,0.21116402]
[1641213623203,0.355957,47250.0,47249.0,0.21116402]
[1641213623403,0.755957,47250.0,47249.0,0.35149969]
[1641213623903,0.00574891,47250.0,47249.0,0.16149969]
[1641213624106,0.00574891,47250.0,47249.0,0.25177969]
[1641213624302,0.00574891,47250.0,47249.0,0.44057051]
[1641213624702,0.00574891,47250.0,47249.0,0.64457681]
[1641213625104,4.891e-05,47250.0,47249.0,0.64557681]
[1641213625303,0.35020809,47251.0,47249.0,0.64657681]
[1641213625503,0.35020809,47251.0,47250.0,0.002]
[1641213626305,0.4,47256.0,47250.0,0.002]
[1641213626504,0.00526547,47251.0,47250.0,0.0120058]
[1641213626705,0.00526547,47255.0,47250.0,0.2120058]
[1641213626905,0.00526547,47255.0,47254.0,0.002]
[1641213627305,0.00526547,47255.0,47254.0,0.14233567]
[1641213627806,0.00526547,47255.0,47254.0,0.14133567]
[1641213628006,0.00526547,47255.0,47254.0,0.14233567]
[1641213628607,0.00526547,47255.0,47254.0,0.33733567]
[1641213629811,0.00526547,47255.0,47254.0,0.51633567]
[1641213630610,0.00526547,47255.0,47254.0,0.51533567]
[1641213630810,0.00526547,47255.0,47254.0,0.33533567]
[1641213631810,0.00526547,47255.0,47254.0,0.33633567]
[1641213632010,0.00526547,47255.0,47254.0,0.32233567]
[1641213632413,0.00526547,47255.0,47254.0,0.14233567]
[1641213632613,0.00526547,47255.0,47254.0,0.33733567]
[1641213633313,0.00526547,47255.0,47254.0,0.51733567]
[1641213633614,0.00526547,47255.0,47254.0,0.33733567]
[1641213634014,0.00526547,47255.0,47254.0,0.14233567]
[1641213634717,0.00526547,47255.0,47254.0,0.33633567]
[1641213634914,0.00526547,47255.0,47254.0,0.51633567]
[1641213635714,0.00526547,47255.0,47254.0,0.36950044]
[1641213636014,0.00526547,47255.0,47254.0,0.35550044]
[1641213636317,0.00526547,47255.0,47254.0,0.35450044]
[1641213636615,0.00526547,47255.0,47254.0,0.54850044]
[1641213637015,0.00526547,47255.0,47254.0,0.55829444]
[1641213637415,0.00526547,47258.0,47254.0,0.55829444]
[1641213637617,0.35020809,47259.0,47257.0,0.181]
[1641213637817,0.35020809,47259.0,47258.0,0.001]
[1641213638417,0.35020809,47259.0,47258.0,0.002]
[1641213638616,0.35020809,47259.0,47258.0,0.196]
[1641213639020,0.35020809,47259.0,47258.0,0.21715657]
[1641213639217,0.35020809,47259.0,47258.0,0.21615657]
[1641213639419,0.5820163,47261.0,47258.0,0.21715657]
[1641213639420,0.35020809,47260.0,47258.0,0.21715657]
[1641213639618,0.35020809,47260.0,47259.0,0.001]
[1641213639820,0.35020809,47260.0,47259.0,0.0755]
[1641213640719,0.35020809,47260.0,47259.0,0.2685]
[1641213641521,0.28620809,47260.0,47259.0,0.2685]
[1641213641821,0.28620809,47261.0,47259.0,0.2695]
[1641213642022,0.28620809,47261.0,47260.0,0.182]
[1641213642621,0.5820163,47262.0,47260.0,0.38500382]
[1641213642821,0.5820163,47262.0,47261.0,0.002]
[1641213643023,0.5820163,47264.0,47261.0,0.002]
[1641213643222,0.5820163,47264.0,47263.0,0.002]
[1641213643622,0.5820163,47264.0,47263.0,0.001]
[1641213643924,0.5820163,47264.0,47263.0,0.002]
[1641213644322,0.5820163,47264.0,47263.0,0.001]
[1641213644522,0.5820163,47264.0,47263.0,0.002]
[1641213644723,0.5820163,47264.0,47263.0,0.193]
[1641213645322,0.94884477,47265.0,47263.0,0.193]
[1641213645524,0.94884477,47265.0,47264.0,0.14233567]
[1641213645925,0.81482283,47265.0,47264.0,0.14233567]
[1641213646125,0.58523752,47265.0,47264.0,0.14233567]
[1641213646526,0.58523752,47265.0,47264.0,0.14133567]
[1641213646725,0.58523752,47265.0,47264.0,0.33133567]
[1641213647927,0.58523752,47265.0,47264.0,0.33233567]
[1641213648135,0.58523752,47265.0,47264.0,0.53349083]
[1641213648327,0.58523752,47265.0,47264.0,0.53249083]
[1641213648529,0.98523752,47265.0,47264.0,0.35249083]
[1641213648728,0.98523752,47265.0,47264.0,0.54049083]
[1641213648928,0.98523752,47265.0,47264.0,0.54149083]
[1641213649129,0.4,47265.0,47264.0,0.54249083]
[1641213649628,0.4,47265.0,47264.0,0.54149083]
[1641213649830,0.58523752,47266.0,47264.0,0.54149083]
[1641213650031,0.58523752,47265.0,47264.0,0.54049083]
[1641213650229,0.98523752,47265.0,47264.0,0.16249083]
[1641213650429,0.58523752,47265.0,47264.0,0.16249083]
[1641213650629,0.58523752,47265.0,47264.0,0.35149083]
[1641213650929,0.58523752,47266.0,47264.0,0.35149083]
[1641213651730,0.58523752,47266.0,47265.0,0.001]
[1641213652733,0.59050963,47266.0,47265.0,0.191]
[1641213654032,0.59050963,47266.0,47265.0,0.001]
[1641213654633,0.99050963,47266.0,47265.0,0.192]
[1641213654833,0.00527211,47266.0,47265.0,0.192]
[1641213655037,0.13858465,47266.0,47265.0,0.192]
[1641213655235,0.13331254,47266.0,47265.0,0.192]
[1641213655636,0.00527211,47266.0,47265.0,0.192]
[1641213656035,0.40527211,47266.0,47264.0,0.16149083]
[1641213656437,0.40527211,47266.0,47265.0,0.001]
[1641213656735,0.4,47266.0,47265.0,0.001]
[1641213657337,0.53331254,47266.0,47265.0,0.001]
[1641213657736,0.4,47266.0,47265.0,0.001]
[1641213657937,0.98516091,47266.0,47265.0,0.001]
[1641213658637,0.98516091,47266.0,47265.0,0.191]
[1641213659337,0.53337179,47266.0,47265.0,0.191]
[1641213659538,1.66853029,47266.0,47265.0,0.19]
[1641213659739,1.66853029,47266.0,47260.0,0.02115914]
[1641213659937,0.4,47261.0,47260.0,0.02115914]
[1641213660438,0.4,47261.0,47251.0,0.08463654]
[1641213660439,0.4,47261.0,47251.0,1.31846369]
[1641213660736,0.174,47261.0,47260.0,0.186]
[1641213661937,0.174,47261.0,47260.0,0.187]
[1641213662138,0.4,47262.0,47258.0,0.02116005]
[1641213662338,0.58,47261.0,47248.0,1.74175708]
[1641213662539,0.4,47255.0,47251.0,0.18]
[1641213662740,0.4,47255.0,47254.0,0.14233567]
[1641213662937,0.181,47262.0,47254.0,0.14233567]
[1641213663138,0.4,47255.0,47254.0,0.14033567]
[1641213663339,0.4,47255.0,47254.0,0.14233567]
[1641213663746,0.18,47261.0,47254.0,0.14233567]
[1641213663940,0.4,47255.0,47254.0,0.14033567]
[1641213664142,0.4,47255.0,47254.0,0.14233567]
[1641213664340,0.4,47255.0,47254.0,0.14133567]
[1641213664541,0.4,47255.0,47254.0,0.14233567]
[1641213664741,0.198,47255.0,47254.0,0.16349604]
[1641213664941,0.198,47255.0,47254.0,0.14233567]
[1641213665141,0.198,47255.0,47254.0,0.16349604]
[1641213665345,0.198,47255.0,47254.0,0.17550151]
[1641213665742,0.198,47255.0,47254.0,0.16249604]
[1641213665947,0.198,47255.0,47254.0,0.16349604]
[1641213666144,0.598,47255.0,47254.0,0.16349604]
[1641213666343,0.198,47255.0,47254.0,0.16349604]
[1641213666543,0.598,47255.0,47254.0,0.14233567]
[1641213666744,0.597,47255.0,47254.0,0.14133567]
[1641213667444,0.197,47255.0,47254.0,0.14133567]
[1641213667644,0.197,47255.0,47254.0,0.16249604]
[1641213668045,0.4,47258.0,47254.0,0.16249604]
[1641213668244,0.4,47258.0,47257.0,0.001]
[1641213668446,0.4,47258.0,47257.0,0.02115914]
[1641213668644,0.593,47258.0,47257.0,0.02215914]
[1641213669044,0.593,47258.0,47257.0,0.02115914]
[1641213669244,0.593,47258.0,47257.0,0.02215914]
[1641213669645,0.593,47258.0,47257.0,0.02115914]
[1641213670059,0.4,47258.0,47257.0,0.02115914]
[1641213670761,0.593,47258.0,47254.0,0.14033567]
[1641213670962,0.4,47255.0,47254.0,0.14033567]
[1641213671561,0.40527445,47255.0,47254.0,0.14033567]
[1641213671962,0.40527445,47255.0,47254.0,0.14133567]
[1641213672261,0.40527445,47255.0,47254.0,0.1614976]
[1641213672462,0.40527445,47255.0,47254.0,0.1624976]
[1641213672661,0.59427445,47255.0,47254.0,0.3014976]
[1641213674163,0.66159445,47255.0,47254.0,0.14133567]
[1641213674365,0.66159445,47255.0,47254.0,0.14033567]
[1641213674765,0.85259445,47255.0,47254.0,0.14033567]
[1641213676168,0.66159445,47255.0,47254.0,0.14033567]
[1641213676770,0.67059445,47255.0,47254.0,0.14133567]
[1641213676968,0.67059445,47255.0,47254.0,0.14033567]
[1641213677169,0.80426785,47255.0,47254.0,0.14133567]
[1641213677367,0.80426785,47255.0,47254.0,0.14033567]
[1641213678070,0.61526785,47255.0,47254.0,0.14033567]
[1641213678269,0.61526785,47255.0,47250.0,0.02116358]
[1641213678471,0.21526785,47255.0,47250.0,0.02116358]
[1641213678668,0.4,47251.0,47250.0,0.02116358]
[1641213679068,0.40527445,47251.0,47250.0,0.02116358]
[1641213679471,0.58527445,47251.0,47250.0,0.02116358]
[1641213679671,0.52527445,47251.0,47247.0,0.14033567]
[1641213679969,0.4,47250.0,47247.0,0.14033567]
[1641213680169,0.40527445,47250.0,47247.0,0.14033567]
[1641213680673,0.00527445,47249.0,47247.0,0.14033567]
[1641213680869,0.58785616,47249.0,47247.0,0.14033567]
[1641213681370,0.00527445,47248.0,47247.0,0.14033567]
[1641213681772,0.00527445,47248.0,47247.0,0.16149979]
[1641213682475,0.75489485,47248.0,47247.0,0.16249979]
[1641213682670,0.35489485,47248.0,47247.0,0.16249979]
[1641213682869,0.94989485,47248.0,47247.0,0.16249979]
[1641213683471,0.54989485,47248.0,47247.0,0.16249979]
[1641213683670,0.94989485,47248.0,47247.0,0.17350842]
[1641213683871,0.54989485,47248.0,47247.0,0.17450842]
[1641213684071,0.35489485,47248.0,47247.0,0.17450842]
[1641213684272,0.35489485,47248.0,47247.0,0.16249979]
[1641213684471,0.75489485,47248.0,47247.0,0.16249979]
[1641213684673,0.00527445,47248.0,47247.0,0.33049979]
[1641213684872,0.19127445,47248.0,47247.0,0.33049979]
[1641213685074,0.19127445,47248.0,47247.0,0.33149979]
[1641213685474,0.19127445,47248.0,47247.0,0.34350824]
[1641213685675,0.19127445,47248.0,47247.0,0.52350824]
[1641213685879,0.19127445,47248.0,47247.0,0.94580883]
[1641213686078,0.3496204,47249.0,47247.0,0.86871835]
[1641213686378,0.58258171,47251.0,47248.0,0.001]
[1641213686579,0.58258171,47251.0,47249.0,0.009794]
[1641213686877,0.58258171,47251.0,47250.0,0.001]
[1641213687279,0.58258171,47251.0,47250.0,0.01400712]
[1641213687680,0.98258171,47256.0,47250.0,0.10491664]
[1641213687880,0.4,47251.0,47250.0,0.10291664]
[1641213688080,0.4,47251.0,47250.0,0.10491664]
[1641213688280,0.4,47255.0,47250.0,0.10491664]
[1641213688484,0.58258171,47257.0,47254.0,0.001]
[1641213688682,0.58258171,47257.0,47251.0,0.01200712]
[1641213688881,0.58258171,47257.0,47256.0,0.001]
[1641213689082,0.58258171,47257.0,47250.0,0.196]
[1641213689282,0.58258171,47257.0,47256.0,0.001]
[1641213689482,0.58258171,47257.0,47256.0,0.002]
[1641213689683,0.58258171,47257.0,47256.0,0.001]
[1641213690285,0.58258171,47257.0,47256.0,0.14133567]
[1641213690585,0.98258171,47258.0,47256.0,0.14133567]
[1641213690785,0.98258171,47258.0,47256.0,0.33333567]
[1641213691788,0.98258171,47258.0,47257.0,0.001]
[1641213692590,0.4,47258.0,47257.0,0.001]
[1641213692789,0.4,47258.0,47257.0,0.195]
[1641213692989,0.4,47258.0,47257.0,0.194]
[1641213693189,0.4,47258.0,47257.0,0.195]
[1641213693991,0.4,47258.0,47257.0,0.001]
[1641213694791,0.4,47258.0,47257.0,0.193]
[1641213695592,0.4,47258.0,47257.0,0.192]
[1641213695792,0.4,47258.0,47257.0,0.193]
[1641213696205,0.4,47258.0,47257.0,0.001]
[1641213696692,0.58258171,47259.0,47257.0,0.001]
[1641213696892,0.4,47258.0,47257.0,0.192]
[1641213697093,0.75042403,47258.0,47257.0,0.193]
[1641213697393,0.35042403,47258.0,47257.0,0.194]
[1641213697592,0.35042403,47258.0,47257.0,0.193]
[1641213697794,0.35042403,47258.0,47257.0,0.194]
[1641213698194,0.35042403,47258.0,47257.0,0.002]
[1641213698395,0.68642403,47258.0,47257.0,0.002]
[1641213698595,0.35042403,47258.0,47257.0,0.002]
[1641213698798,0.35042403,47258.0,47257.0,0.194]
[1641213699196,0.35042403,47259.0,47257.0,0.194]
[1641213699495,0.35042403,47259.0,47258.0,0.002]
[1641213699896,0.35042403,47259.0,47258.0,0.001]
[1641213700096,0.68642403,47259.0,47258.0,0.001]
[1641213700296,0.35042403,47259.0,47258.0,0.001]
[1641213700897,0.68642403,47259.0,47258.0,0.193]
[1641213701304,0.35042403,47259.0,47258.0,0.193]
[1641213701801,0.35042403,47259.0,47258.0,0.194]
[1641213702098,0.68642403,47259.0,47258.0,0.001]
[1641213702299,0.68642403,47259.0,47258.0,0.14233567]
[1641213702499,0.68642403,47259.0,47258.0,0.14133567]
[1641213702699,0.68642403,47259.0,47258.0,0.14233567]
[1641213702900,0.68642403,47259.0,47258.0,0.33433567]
[1641213703199,0.35042403,47259.0,47258.0,0.33433567]
[1641213703399,0.68642403,47259.0,47258.0,0.33433567]
[1641213703600,0.35042403,47259.0,47258.0,0.33433567]
[1641213703811,0.68642403,47259.0,47258.0,0.33433567]
[1641213704210,0.68642403,47259.0,47258.0,0.14233567]
[1641213704911,0.68642403,47259.0,47258.0,0.33733567]
[1641213705310,0.35042403,47259.0,47258.0,0.33733567]
[1641213705912,0.68642403,47259.0,47258.0,0.33733567]
[1641213706211,0.68642403,47259.0,47258.0,0.14233567]
[1641213706911,0.35042403,47259.0,47258.0,0.33633567]
[1641213707111,0.68642403,47259.0,47258.0,0.33633567]
[1641213707812,0.336,47259.0,47258.0,0.33533567]
[1641213708012,0.336,47259.0,47258.0,0.33633567]
[1641213708212,0.336,47259.0,47258.0,0.14233567]
[1641213708612,0.336,47259.0,47258.0,0.14133567]
[1641213708813,0.336,47259.0,47258.0,0.33633567]
[1641213709212,0.336,47259.0,47258.0,0.33533567]
[1641213709411,0.336,47259.0,47258.0,0.33633567]
[1641213709813,0.336,47259.0,47258.0,0.33433567]
[1641213710214,0.336,47259.0,47258.0,0.14033567]
[1641213710813,0.336,47259.0,47258.0,0.33533567]
[1641213711923,0.336,47259.0,47258.0,0.33633567]
[1641213712224,0.336,47259.0,47258.0,0.14133567]
[1641213712825,0.40959,47259.0,47258.0,0.33433567]
[1641213714026,0.40959,47259.0,47258.0,0.33533567]
[1641213714323,0.40959,47259.0,47258.0,0.14133567]
[1641213714923,0.40959,47259.0,47258.0,0.33033567]
[1641213715724,0.40959,47259.0,47258.0,0.32933567]
[1641213715925,0.40959,47259.0,47258.0,0.33033567]
[1641213716124,0.336,47259.0,47258.0,0.14133567]
[1641213716524,0.68676851,47259.0,47258.0,0.14133567]
[1641213716924,0.68676851,47259.0,47258.0,0.33233567]
[1641213718227,0.68676851,47259.0,47258.0,0.14133567]
[1641213718826,0.68676851,47259.0,47258.0,0.33333567]
[1641213719927,0.68676851,47259.0,47258.0,0.33233567]
[1641213720328,0.68676851,47259.0,47258.0,0.14033567]
[1641213720929,0.68676851,47259.0,47258.0,0.33233567]
[1641213721335,0.35076851,47259.0,47258.0,0.33233567]
[1641213721733,0.8156144,47262.0,47258.0,0.33233567]
[1641213721930,1.3589,56622.0,47258.0,0.33233567]
[1641213722131,0.13251941,47259.0,47258.0,0.33233567]
[1641213722330,0.13251941,47259.0,47258.0,0.14033567]
[1641213722931,0.13251941,47261.0,47258.0,0.33433567]
[1641213724034,0.13251941,47261.0,47260.0,0.02115721]
[1641213724833,0.13251941,47261.0,47260.0,0.21215721]
[1641213725736,0.13251941,47261.0,47260.0,0.21315721]
[1641213726136,0.13251941,47261.0,47260.0,0.02215721]
[1641213726937,0.13251941,47261.0,47260.0,0.21215721]
[1641213727138,0.13251941,47261.0,47260.0,0.21115721]
[1641213727337,0.13251941,47261.0,47260.0,0.21215721]
[1641213727738,0.13251941,47261.0,47260.0,0.21115721]
[1641213727938,0.13251941,47261.0,47260.0,0.30104721]
[1641213728343,0.13251941,47261.0,47260.0,0.27889]
[1641213728540,0.13251941,47261.0,47260.0,0.3010477]
[1641213728740,0.13251941,47261.0,47260.0,0.27989]
[1641213728942,0.13251941,47261.0,47260.0,0.46989]
[1641213729141,0.13251941,47261.0,47260.0,0.4910477]
[1641213729941,0.13251941,47261.0,47260.0,0.4900477]
[1641213730144,0.13251941,47261.0,47260.0,0.1100477]
[1641213730543,0.13251941,47261.0,47260.0,0.1110477]
[1641213730945,0.336,47262.0,47261.0,0.14844669]
[1641213731345,0.336,47262.0,47260.0,0.2121577]
[1641213731651,0.336,47262.0,47261.0,0.001]
[1641213731847,0.336,47262.0,47261.0,0.002]
[1641213732447,0.336,47262.0,47261.0,0.0221577]
[1641213732646,0.336,47262.0,47261.0,0.0231577]
[1641213732853,1.40617037,47265.0,47261.0,0.2209517]
[1641213733047,1.40617037,47265.0,47261.0,0.198794]
[1641213733247,0.272,47262.0,47261.0,0.198794]
[1641213733447,1.40617037,47265.0,47261.0,0.200794]
[1641213733647,1.40617037,47265.0,47264.0,0.001]
[1641213733848,0.272,47266.0,47264.0,0.002]
[1641213734047,0.272,47266.0,47265.0,0.001]
[1641213734247,0.272,47266.0,47264.0,0.02115507]
[1641213734450,1.40617037,47267.0,47265.0,0.001]
[1641213734648,1.40617037,47267.0,47266.0,0.001]
[1641213734948,1.67817037,47267.0,47266.0,0.002]
[1641213735150,0.272,47267.0,47266.0,0.02315386]
[1641213735950,0.272,47267.0,47266.0,0.002]
[1641213736751,0.272,47267.0,47266.0,0.14233567]
[1641213737054,0.272,47267.0,47266.0,0.33333567]
[1641213737651,0.272,47267.0,47266.0,0.33233567]
[1641213737852,0.272,47267.0,47266.0,0.35449007]
[1641213738253,0.272,47267.0,47266.0,0.16349007]
[1641213738654,0.272,47267.0,47266.0,0.14233567]
[1641213738858,0.272,47267.0,47266.0,0.33333567]
[1641213739058,0.272,47267.0,47266.0,0.35449017]
[1641213739259,0.272,47267.0,47266.0,0.33433567]
[1641213739661,0.272,47267.0,47266.0,0.35449017]
[1641213740261,0.272,47267.0,47266.0,0.33333567]
[1641213741961,0.272,47267.0,47266.0,0.33433567]
[1641213742163,0.272,47267.0,47266.0,0.14233567]
[1641213742964,0.272,47267.0,47266.0,0.33433567]
[1641213743664,0.272,47267.0,47266.0,0.35549017]
[1641213744265,0.272,47267.0,47266.0,0.14233567]
[1641213745071,0.272,47267.0,47266.0,0.33433567]
[1641213745774,0.272,47267.0,47266.0,0.35549042]
[1641213745974,0.272,47267.0,47266.0,0.33433567]
[1641213746172,0.272,47267.0,47266.0,0.35549042]
[1641213746372,0.272,47267.0,47266.0,0.16349042]
[1641213746973,0.272,47267.0,47266.0,0.35549042]
[1641213747180,0.39928159,47267.0,47266.0,0.35549042]
[1641213747774,0.39928159,47267.0,47266.0,0.33433567]
[1641213748173,0.39928159,47267.0,47266.0,0.33333567]
[1641213748373,0.39928159,47267.0,47266.0,0.35549042]
[1641213749077,0.39928159,47267.0,47266.0,0.54749042]
[1641213749476,0.39928159,47267.0,47266.0,0.54649042]
[1641213750879,0.39928159,47267.0,47266.0,0.16249042]
[1641213751078,0.39928159,47267.0,47266.0,0.35349042]
[1641213751478,0.39928159,47267.0,47266.0,0.33233567]
[1641213751879,0.39928159,47267.0,47266.0,0.33333567]
[1641213752481,0.39928159,47267.0,47266.0,0.33233567]
[1641213752781,0.39928159,47267.0,47266.0,0.33333567]
[1641213752979,0.39928159,47267.0,47266.0,0.33533567]
[1641213753381,0.39928159,47267.0,47266.0,0.35548956]
[1641213753579,0.39928159,47267.0,47266.0,0.35648956]
[1641213753779,0.39928159,47267.0,47266.0,0.35548956]
[1641213753980,0.39928159,47267.0,47266.0,0.35648956]
[1641213754380,0.39928159,47267.0,47266.0,0.16348956]
[1641213754983,0.39928159,47267.0,47266.0,0.35448956]
[1641213755182,0.39928159,47267.0,47266.0,0.35348956]
[1641213755382,0.12728159,47267.0,47266.0,0.35348956]
[1641213755982,0.12728159,47267.0,47266.0,0.35448956]
[1641213756182,0.12728159,47267.0,47266.0,0.45993215]
[1641213756383,0.272,47267.0,47266.0,0.26893215]
[1641213756786,0.272,47267.0,47266.0,0.30073215]
[1641213756981,0.39928159,47267.0,47266.0,0.49073215]
[1641213757682,0.39928159,47267.0,47266.0,0.48973215]
[1641213757889,0.12728159,47267.0,47266.0,0.48973215]
[1641213758083,0.12728159,47267.0,47266.0,0.49073215]
[1641213758283,0.12728159,47267.0,47266.0,0.30073215]
[1641213758487,0.12728159,47267.0,47266.0,0.48073215]
[1641213758694,0.262111,47270.0,47269.0,0.42310596]
[1641213758884,0.198111,47270.0,47269.0,0.60410596]
[1641213759083,0.198111,47270.0,47269.0,0.74444163]
[1641213759286,2.60689208,47274.0,47269.0,0.68247955]
[1641213759484,0.198111,47270.0,47269.0,0.75235801]
[1641213759685,0.198111,47270.0,47269.0,0.74235468]
[1641213759888,1.40617037,47274.0,47269.0,0.74135468]
[1641213760087,0.59556061,47270.0,47269.0,1.29724872]
[1641213760285,1.58617037,47280.0,47270.0,0.10544259]
[1641213760487,0.087877,47271.0,47270.0,0.18764259]
[1641213760685,0.087877,47271.0,47270.0,0.18864259]
[1641213760885,1.40617037,47280.0,47270.0,0.18864259]
[1641213761086,0.087877,47271.0,47270.0,0.37964259]
[1641213761284,0.087877,47271.0,47270.0,0.38064259]
[1641213761686,0.58628361,47271.0,47270.0,0.38064259]
[1641213761887,0.67416061,47271.0,47270.0,0.38064259]
[1641213762087,0.58628361,47271.0,47270.0,0.40279318]
[1641213762287,0.67416061,47271.0,47270.0,0.21079318]
[1641213762686,0.087877,47271.0,47270.0,0.20979318]
[1641213762889,0.087877,47271.0,47270.0,0.52799118]
[1641213763087,0.087877,47271.0,47270.0,0.86132685]
[1641213763487,0.18,47280.0,47270.0,0.86132685]
[1641213763688,0.18,47280.0,47279.0,0.001]
[1641213763889,0.18,47280.0,47270.0,0.85932685]
[1641213764090,0.18,47280.0,47279.0,0.001]
[1641213764992,0.18,47280.0,47279.0,0.19]
[1641213765190,0.18,47280.0,47279.0,0.33033567]
[1641213766991,1.58617037,47280.0,47279.0,0.32833567]
[1641213767392,1.40617037,47280.0,47279.0,0.32833567]
[1641213767793,1.58617037,47280.0,47279.0,0.32833567]
[1641213767993,0.18,47280.0,47279.0,0.32833567]
[1641213768291,0.18,47280.0,47279.0,0.14033567]
[1641213768993,1.40617037,47281.0,47279.0,0.32633567]
[1641213769393,0.18,47280.0,47279.0,0.32633567]
[1641213769593,0.18,47280.0,47279.0,0.32733567]
[1641213769794,0.18,47280.0,47279.0,0.32833567]
[1641213769995,1.40617037,47281.0,47279.0,0.32733567]
[1641213770195,0.18,47280.0,47279.0,0.32633567]
[1641213770392,0.18,47280.0,47279.0,0.14133567]
[1641213770992,0.18,47280.0,47279.0,0.32833567]
[1641213771597,1.00021171,47280.0,47279.0,0.32833567]
[1641213771793,0.82021171,47280.0,47279.0,0.32833567]
[1641213771994,0.82021171,47280.0,47279.0,0.32933567]
[1641213772395,0.82021171,47280.0,47279.0,0.14233567]
[1641213772997,0.82021171,47280.0,47279.0,0.32833567]
[1641213773295,0.82021171,47280.0,47279.0,0.32733567]
[1641213773696,0.82021171,47280.0,47279.0,0.32833567]
[1641213774298,0.82021171,47280.0,47279.0,0.14233567]
[1641213775097,0.82021171,47280.0,47279.0,0.32933567]
[1641213775498,0.82021171,47280.0,47279.0,0.36103567]
[1641213775899,1.17176433,47282.0,47279.0,0.36103567]
[1641213776097,0.18,47281.0,47279.0,0.32733567]
[1641213776298,0.18,47281.0,47280.0,0.001]
[1641213777098,1.17176433,47282.0,47280.0,0.177]
[1641213777299,0.30119487,47286.0,47280.0,0.177]
[1641213777499,0.12119487,47281.0,47280.0,0.177]
[1641213777700,0.30119487,47281.0,47280.0,0.178]
[1641213778302,0.30119487,47281.0,47280.0,0.001]
[1641213778503,0.18,47281.0,47280.0,0.001]
[1641213778703,0.189794,47281.0,47279.0,0.14033567]
[1641213779103,0.31098887,47281.0,47280.0,0.175]
[1641213779904,0.31098887,47281.0,47280.0,0.174]
[1641213780304,0.31098887,47281.0,47279.0,0.14033567]
[1641213780704,0.18,47280.0,47279.0,0.14033567]
[1641213781106,0.18,47280.0,47279.0,0.31733567]
[1641213781905,0.18,47280.0,47279.0,0.31833567]
[1641213782507,0.18,47280.0,47279.0,0.14033567]
[1641213782707,0.18,47280.0,47279.0,0.14133567]
[1641213783108,0.18,47280.0,47279.0,0.32033567]
[1641213784408,0.18,47280.0,47279.0,0.14133567]
[1641213785011,0.18,47280.0,47279.0,0.31933567]
[1641213785211,0.18,47280.0,47279.0,0.32033567]
[1641213786528,0.18,47280.0,47279.0,0.14133567]
[1641213786927,0.18,47280.0,47279.0,0.001]
[1641213787830,1.35095325,47280.0,47279.0,0.001]
[1641213788028,1.35095325,47280.0,47279.0,0.181]
[1641213788430,1.35095325,47280.0,47279.0,0.001]
[1641213788830,1.17095325,47280.0,47279.0,0.001]
[1641213789030,1.35095325,47280.0,47279.0,0.182]
[1641213789930,1.17095325,47280.0,47279.0,0.182]
[1641213790130,1.35095325,47280.0,47279.0,0.181]
[1641213790330,1.35095325,47280.0,47275.0,0.02115237]
[1641213790331,0.18,47280.0,47275.0,0.02115237]
[1641213791132,0.18,47280.0,47275.0,0.20615237]
[1641213791334,0.58466746,47276.0,47275.0,0.20615237]
[1641213791933,0.58466746,47276.0,47275.0,0.20715237]
[1641213792333,0.58466746,47276.0,47275.0,0.02215237]
[1641213792740,1.11978232,47278.0,47275.0,0.02215237]
[1641213792741,0.58466746,47277.0,47275.0,0.02215237]
[1641213792934,0.58466746,47277.0,47276.0,0.001]
[1641213793536,0.58466746,47276.0,47275.0,0.21015237]
[1641213793738,0.58466746,47276.0,47275.0,0.21115237]
[1641213794137,1.70736524,47279.0,47275.0,0.21115237]
[1641213794436,1.70736524,47279.0,47278.0,0.001]
[1641213794838,1.58617037,47279.0,47278.0,0.001]
[1641213795236,1.58617037,47279.0,47278.0,0.187]
[1641213795648,0.18,47279.0,47278.0,0.187]
[1641213796237,0.18,47279.0,47278.0,0.186]
[1641213796438,1.40617037,47281.0,47278.0,0.001]
[1641213796638,0.18,47279.0,47278.0,0.001]
[1641213797238,0.18,47279.0,47278.0,0.186]
[1641213798439,0.18,47279.0,47278.0,0.001]
[1641213799138,0.18,47279.0,47278.0,0.183]
[1641213800242,0.18,47279.0,47278.0,0.182]
[1641213800541,0.18,47279.0,47275.0,0.02115237]
[1641213801147,0.18,47279.0,47275.0,0.20615237]
[1641213802041,0.18,47279.0,47278.0,0.001]
[1641213803243,0.18,47279.0,47278.0,0.183]
[1641213803442,0.18,47279.0,47278.0,0.184]
[1641213804445,0.18,47279.0,47278.0,0.001]